Workbook

Sheet Handleiding
B2: PERSOONLIJKE CASHFLOW
B3: Deze werkmap bevat werkbladen voor jaarlijkse, maandelijkse en dagelijkse cashflow. Kies het type cashflow dat het beste bij u past of gebruik ze allemaal om inzicht te krijgen in uw persoonlijke cashflow.
B5: Dagelijkse cashflow | E5: Maandelijkse cashflow | H5: Jaarlijkse cashflow
B7: Voer een geschat cashflowbedrag in dat u dagelijks ervaart en bekijk de geschatte maandelijkse en jaarlijkse totalen. Gebruik dit om een ​​idee te krijgen van hoe uw dagelijkse bestedingspatroon eruit zal zien in de loop van een maand of een jaar. | E7: Voer de maandelijkse cashflow in die u maandelijks ervaart of schat de resterende maanden om de geprojecteerde cashflow voor het jaar voor elke maand weer te geven. | H7: Voer een jaarlijks bedrag voor de cashflow in vier werkbladen in: Inkomsten, Uitgaven, Discretionair en Besparingen. Bekijk de maandelijkse uitsplitsing en hoe alles zich verhoudt, en vooral wat uw saldo is,in zowel jaar- als maandcijfers.

Sheet Dagelijkse cashflow
B1: PERSOONLIJKE CASHFLOW
C2: Totaal beschikbaar in contanten: | D2: =DagelijkseCashFlow -> € 577.84 | F2: OPMERKING: Als u dagelijkse items aan de tabel wilt toevoegen, schat u de maandelijkse bedragen/waarden en plaatst u de waarden in de juiste maandkolom.
B4: DAGELIJKS OVERZICHT
B5: Totalen | C5: Dagelijks | D5: Maandelijks | E5: Jaarlijks
B6: Inkomsten | C6: =SUMIF(Dagelijks[Type],$B6,Dagelijks[Dagelijks]) -> € 342.47 | D6: =SUMIF(Dagelijks[Type],$B6,Dagelijks[Maandelijks]) -> € 10,416.80 | E6: =SUMIF(Dagelijks[Type],$B6,Dagelijks[Jaarlijks]) -> € 125,001.55
B7: Uitgaven | C7: =SUMIF(Dagelijks[Type],$B7,Dagelijks[Dagelijks]) -> € 136.06 | D7: =SUMIF(Dagelijks[Type],$B7,Dagelijks[Maandelijks]) -> € 4,138.49 | E7: =SUMIF(Dagelijks[Type],$B7,Dagelijks[Jaarlijks]) -> € 49,661.90
B8: Discretionair | C8: =SUMIF(Dagelijks[Type],$B8,Dagelijks[Dagelijks]) -> € 36.29 | D8: =SUMIF(Dagelijks[Type],$B8,Dagelijks[Maandelijks]) -> € 1,103.82 | E8: =SUMIF(Dagelijks[Type],$B8,Dagelijks[Jaarlijks]) -> € 13,245.85
B9: Spaargeld | C9: =SUMIF(Dagelijks[Type],$B9,Dagelijks[Dagelijks]) -> € 63.02 | D9: =SUMIF(Dagelijks[Type],$B9,Dagelijks[Maandelijks]) -> € 1,916.86 | E9: =SUMIF(Dagelijks[Type],$B9,Dagelijks[Jaarlijks]) -> € 23,002.30
B11: Type | C11: Beschrijving | D11: Dagelijks | E11: Maandelijks | F11: Jaarlijks
B12: Inkomsten | C12: Salaris | D12: € 246.58 | E12: =Dagelijks[[#This Row],[Jaarlijks]]/12 -> € 7,500.14 | F12: =Dagelijks[[#This Row],[Dagelijks]]*365 -> € 90,001.70
B13: Inkomsten | C13: Commissie/bonus | D13: € 13.70 | E13: =Dagelijks[[#This Row],[Jaarlijks]]/12 -> € 416.71 | F13: =Dagelijks[[#This Row],[Dagelijks]]*365 -> € 5,000.50
B14: Inkomsten | C14: Overige 1 | D14: € 82.19 | E14: =Dagelijks[[#This Row],[Jaarlijks]]/12 -> € 2,499.95 | F14: =Dagelijks[[#This Row],[Dagelijks]]*365 -> € 29,999.35
B15: Inkomsten | C15: Overige 2 | D15: € 0.00 | E15: =Dagelijks[[#This Row],[Jaarlijks]]/12 -> € 0.00 | F15: =Dagelijks[[#This Row],[Dagelijks]]*365 -> € 0.00
B16: Inkomsten | C16: Overige 3 | D16: € 0.00 | E16: =Dagelijks[[#This Row],[Jaarlijks]]/12 -> € 0.00 | F16: =Dagelijks[[#This Row],[Dagelijks]]*365 -> € 0.00
B17: Inkomsten | C17: Overige 4 | D17: € 0.00 | E17: =Dagelijks[[#This Row],[Jaarlijks]]/12 -> € 0.00 | F17: =Dagelijks[[#This Row],[Dagelijks]]*365 -> € 0.00
B18: Uitgaven | C18: Inkomstenbelasting | D18: € 41.10 | E18: =Dagelijks[[#This Row],[Jaarlijks]]/12 -> € 1,250.13 | F18: =Dagelijks[[#This Row],[Dagelijks]]*365 -> € 15,001.50
B19: Uitgaven | C19: Ziektekostenverzekering | D19: € 6.85 | E19: =Dagelijks[[#This Row],[Jaarlijks]]/12 -> € 208.35 | F19: =Dagelijks[[#This Row],[Dagelijks]]*365 -> € 2,500.25
B20: Uitgaven | C20: Voertuigbelasting/-kosten | D20: € 0.55 | E20: =Dagelijks[[#This Row],[Jaarlijks]]/12 -> € 16.73 | F20: =Dagelijks[[#This Row],[Dagelijks]]*365 -> € 200.75
B21: Uitgaven | C21: Afbetaling auto | D21: € 10.96 | E21: =Dagelijks[[#This Row],[Jaarlijks]]/12 -> € 333.37 | F21: =Dagelijks[[#This Row],[Dagelijks]]*365 -> € 4,000.40
B22: Uitgaven | C22: Hypotheek/huur | D22: € 41.10 | E22: =Dagelijks[[#This Row],[Jaarlijks]]/12 -> € 1,250.13 | F22: =Dagelijks[[#This Row],[Dagelijks]]*365 -> € 15,001.50
B23: Uitgaven | C23: Verzekering | D23: € 0.68 | E23: =Dagelijks[[#This Row],[Jaarlijks]]/12 -> € 20.68 | F23: =Dagelijks[[#This Row],[Dagelijks]]*365 -> € 248.20
B24: Uitgaven | C24: Elektriciteit | D24: € 3.29 | E24: =Dagelijks[[#This Row],[Jaarlijks]]/12 -> € 100.07 | F24: =Dagelijks[[#This Row],[Dagelijks]]*365 -> € 1,200.85
B25: Uitgaven | C25: Gas | D25: € 1.64 | E25: =Dagelijks[[#This Row],[Jaarlijks]]/12 -> € 49.88 | F25: =Dagelijks[[#This Row],[Dagelijks]]*365 -> € 598.60
B26: Uitgaven | C26: Water | D26: € 1.64 | E26: =Dagelijks[[#This Row],[Jaarlijks]]/12 -> € 49.88 | F26: =Dagelijks[[#This Row],[Dagelijks]]*365 -> € 598.60
B27: Uitgaven | C27: Riolering | D27: € 0.82 | E27: =Dagelijks[[#This Row],[Jaarlijks]]/12 -> € 24.94 | F27: =Dagelijks[[#This Row],[Dagelijks]]*365 -> € 299.30
B28: Uitgaven | C28: Afval | D28: € 0.41 | E28: =Dagelijks[[#This Row],[Jaarlijks]]/12 -> € 12.47 | F28: =Dagelijks[[#This Row],[Dagelijks]]*365 -> € 149.65
B29: Uitgaven | C29: Telefoon | D29: € 1.64 | E29: =Dagelijks[[#This Row],[Jaarlijks]]/12 -> € 49.88 | F29: =Dagelijks[[#This Row],[Dagelijks]]*365 -> € 598.60
B30: Uitgaven | C30: Internet | D30: € 1.64 | E30: =Dagelijks[[#This Row],[Jaarlijks]]/12 -> € 49.88 | F30: =Dagelijks[[#This Row],[Dagelijks]]*365 -> € 598.60
B31: Uitgaven | C31: Premies arbeidsongeschiktheidsverzekering | D31: € 4.11 | E31: =Dagelijks[[#This Row],[Jaarlijks]]/12 -> € 125.01 | F31: =Dagelijks[[#This Row],[Dagelijks]]*365 -> € 1,500.15
B32: Uitgaven | C32: Eten | D32: € 13.70 | E32: =Dagelijks[[#This Row],[Jaarlijks]]/12 -> € 416.71 | F32: =Dagelijks[[#This Row],[Dagelijks]]*365 -> € 5,000.50
B33: Uitgaven | C33: Kleding | D33: € 3.29 | E33: =Dagelijks[[#This Row],[Jaarlijks]]/12 -> € 100.07 | F33: =Dagelijks[[#This Row],[Dagelijks]]*365 -> € 1,200.85
B34: Uitgaven | C34: Dokter/tandarts/apotheek | D34: € 1.64 | E34: =Dagelijks[[#This Row],[Jaarlijks]]/12 -> € 49.88 | F34: =Dagelijks[[#This Row],[Dagelijks]]*365 -> € 598.60
B35: Uitgaven | C35: Bus | D35: € 1.00 | E35: =Dagelijks[[#This Row],[Jaarlijks]]/12 -> € 30.42 | F35: =Dagelijks[[#This Row],[Dagelijks]]*365 -> € 365.00
B36: Uitgaven | C36: Overige 2 | D36: € 0.00 | E36: =Dagelijks[[#This Row],[Jaarlijks]]/12 -> € 0.00 | F36: =Dagelijks[[#This Row],[Dagelijks]]*365 -> € 0.00
B37: Uitgaven | C37: Overige 3 | D37: € 0.00 | E37: =Dagelijks[[#This Row],[Jaarlijks]]/12 -> € 0.00 | F37: =Dagelijks[[#This Row],[Dagelijks]]*365 -> € 0.00
B38: Uitgaven | C38: Overige 4 | D38: € 0.00 | E38: =Dagelijks[[#This Row],[Jaarlijks]]/12 -> € 0.00 | F38: =Dagelijks[[#This Row],[Dagelijks]]*365 -> € 0.00
B39: Discretionair | C39: Uit eten | D39: € 3.29 | E39: =Dagelijks[[#This Row],[Jaarlijks]]/12 -> € 100.07 | F39: =Dagelijks[[#This Row],[Dagelijks]]*365 -> € 1,200.85
B40: Discretionair | C40: Cadeaus | D40: € 1.64 | E40: =Dagelijks[[#This Row],[Jaarlijks]]/12 -> € 49.88 | F40: =Dagelijks[[#This Row],[Dagelijks]]*365 -> € 598.60
B41: Discretionair | C41: Reiskosten | D41: € 6.16 | E41: =Dagelijks[[#This Row],[Jaarlijks]]/12 -> € 187.37 | F41: =Dagelijks[[#This Row],[Dagelijks]]*365 -> € 2,248.40
B42: Discretionair | C42: Amusement | D42: € 3.29 | E42: =Dagelijks[[#This Row],[Jaarlijks]]/12 -> € 100.07 | F42: =Dagelijks[[#This Row],[Dagelijks]]*365 -> € 1,200.85
B43: Discretionair | C43: Persoonlijke verzorging | D43: € 0.82 | E43: =Dagelijks[[#This Row],[Jaarlijks]]/12 -> € 24.94 | F43: =Dagelijks[[#This Row],[Dagelijks]]*365 -> € 299.30
B44: Discretionair | C44: Winkelen | D44: € 5.48 | E44: =Dagelijks[[#This Row],[Jaarlijks]]/12 -> € 166.68 | F44: =Dagelijks[[#This Row],[Dagelijks]]*365 -> € 2,000.20
B45: Discretionair | C45: Liefdadigheid | D45: € 1.64 | E45: =Dagelijks[[#This Row],[Jaarlijks]]/12 -> € 49.88 | F45: =Dagelijks[[#This Row],[Dagelijks]]*365 -> € 598.60
B46: Discretionair | C46: Clubs/lidmaatschappen | D46: € 0.82 | E46: =Dagelijks[[#This Row],[Jaarlijks]]/12 -> € 24.94 | F46: =Dagelijks[[#This Row],[Dagelijks]]*365 -> € 299.30
B47: Discretionair | C47: Woningverbetering | D47: € 13.15 | E47: =Dagelijks[[#This Row],[Jaarlijks]]/12 -> € 399.98 | F47: =Dagelijks[[#This Row],[Dagelijks]]*365 -> € 4,799.75
B48: Discretionair | C48: Overige 1 | D48: € 0.00 | E48: =Dagelijks[[#This Row],[Jaarlijks]]/12 -> € 0.00 | F48: =Dagelijks[[#This Row],[Dagelijks]]*365 -> € 0.00
B49: Discretionair | C49: Overige 2 | D49: € 0.00 | E49: =Dagelijks[[#This Row],[Jaarlijks]]/12 -> € 0.00 | F49: =Dagelijks[[#This Row],[Dagelijks]]*365 -> € 0.00
B50: Spaargeld | C50: Cashreserve | D50: € 13.70 | E50: =Dagelijks[[#This Row],[Jaarlijks]]/12 -> € 416.71 | F50: =Dagelijks[[#This Row],[Dagelijks]]*365 -> € 5,000.50
B51: Spaargeld | C51: Pensioenvoorziening/enz. | D51: € 32.88 | E51: =Dagelijks[[#This Row],[Jaarlijks]]/12 -> € 1,000.10 | F51: =Dagelijks[[#This Row],[Dagelijks]]*365 -> € 12,001.20
B52: Spaargeld | C52: Spaarrekening | D52: € 16.44 | E52: =Dagelijks[[#This Row],[Jaarlijks]]/12 -> € 500.05 | F52: =Dagelijks[[#This Row],[Dagelijks]]*365 -> € 6,000.60
B53: Spaargeld | C53: Overige 1 | D53: € 0.00 | E53: =Dagelijks[[#This Row],[Jaarlijks]]/12 -> € 0.00 | F53: =Dagelijks[[#This Row],[Dagelijks]]*365 -> € 0.00
B54: Spaargeld | C54: Overige 2 | D54: € 0.00 | E54: =Dagelijks[[#This Row],[Jaarlijks]]/12 -> € 0.00 | F54: =Dagelijks[[#This Row],[Dagelijks]]*365 -> € 0.00
B55: Totaal | D55: =SUMIF(Dagelijks[Type],"Inkomsten",Dagelijks[Dagelijks])-SUMIF(Dagelijks[Type],"<>Inkomsten",Dagelijks[Dagelijks]) -> € 107.10 | E55: =SUMIF(Dagelijks[Type],"Inkomsten",Dagelijks[Maandelijks])-SUMIF(Dagelijks[Type],"<>Inkomsten",Dagelijks[Maandelijks]) -> € 3,257.63 | F55: =SUMIF(Dagelijks[Type],"Inkomsten",Dagelijks[Jaarlijks])-SUMIF(Dagelijks[Type],"<>Inkomsten",Dagelijks[Jaarlijks]) -> € 39,091.50

Sheet Maandelijkse cashflow
B1: PERSOONLIJKE CASHFLOW
C2: Totale maandelijkse cashflow: | D2: =MaandelijkseCashflowTotHeden -> € 18,380.00 | F2: OPMERKING: Schat voor dagelijkse items het/de maandbedrag/-waarde en plaats die waarde in de juiste maandkolom.
B4: Type | C4: Beschrijving | D4: Jan | E4: Feb | F4: Mrt | G4: Apr | H4: Mei | I4: Jun | J4: Jul | K4: Aug | L4: Sep | M4: Okt | N4: Nov | O4: Dec | P4: Totaal
B5: Inkomsten | C5: Salaris | D5: € 7,500.00 | E5: € 7,500.00 | F5: € 7,500.00 | G5: € 7,500.00 | H5: € 7,500.00 | I5: € 7,500.00 | P5: =SUM(Maandelijks[[#This Row],[Jan]:[Dec]]) -> € 45,000.00
B6: Inkomsten | C6: Commissie/bonus | D6: € 400.00 | E6: € 400.00 | F6: € 500.00 | G6: € 200.00 | H6: € 0.00 | I6: € 600.00 | P6: =SUM(Maandelijks[[#This Row],[Jan]:[Dec]]) -> € 2,100.00
B7: Inkomsten | C7: Overige 1 | D7: € 2,500.00 | E7: € 2,500.00 | F7: € 2,500.00 | G7: € 2,500.00 | H7: € 2,500.00 | I7: € 2,500.00 | P7: =SUM(Maandelijks[[#This Row],[Jan]:[Dec]]) -> € 15,000.00
B8: Inkomsten | C8: Overige 2 | D8: € 0.00 | E8: € 0.00 | F8: € 0.00 | G8: € 0.00 | H8: € 0.00 | I8: € 0.00 | P8: =SUM(Maandelijks[[#This Row],[Jan]:[Dec]]) -> € 0.00
B9: Inkomsten | C9: Overige 3 | D9: € 0.00 | E9: € 0.00 | F9: € 0.00 | G9: € 0.00 | H9: € 0.00 | I9: € 0.00 | P9: =SUM(Maandelijks[[#This Row],[Jan]:[Dec]]) -> € 0.00
B10: Inkomsten | C10: Overige 4 | D10: € 0.00 | E10: € 0.00 | F10: € 0.00 | G10: € 0.00 | H10: € 0.00 | I10: € 0.00 | P10: =SUM(Maandelijks[[#This Row],[Jan]:[Dec]]) -> € 0.00
B11: Uitgaven | C11: Inkomstenbelasting | D11: € 1,250.00 | E11: € 1,250.00 | F11: € 1,250.00 | G11: € 1,250.00 | H11: € 1,250.00 | I11: € 1,250.00 | P11: =SUM(Maandelijks[[#This Row],[Jan]:[Dec]]) -> € 7,500.00
B12: Uitgaven | C12: Ziektekostenverzekering | D12: € 208.33 | E12: € 208.33 | F12: € 208.33 | G12: € 208.33 | H12: € 208.33 | I12: € 208.33 | P12: =SUM(Maandelijks[[#This Row],[Jan]:[Dec]]) -> € 1,250.00
B13: Uitgaven | C13: Voertuigbelasting/-kosten | D13: € 16.67 | E13: € 16.67 | F13: € 16.67 | G13: € 16.67 | H13: € 16.67 | I13: € 16.67 | P13: =SUM(Maandelijks[[#This Row],[Jan]:[Dec]]) -> € 100.00
B14: Uitgaven | C14: Afbetaling auto | D14: € 333.33 | E14: € 333.33 | F14: € 333.33 | G14: € 333.33 | H14: € 333.33 | I14: € 333.33 | P14: =SUM(Maandelijks[[#This Row],[Jan]:[Dec]]) -> € 2,000.00
B15: Uitgaven | C15: Hypotheek/huur | D15: € 1,250.00 | E15: € 1,250.00 | F15: € 1,250.00 | G15: € 1,250.00 | H15: € 1,250.00 | I15: € 1,250.00 | P15: =SUM(Maandelijks[[#This Row],[Jan]:[Dec]]) -> € 7,500.00
B16: Uitgaven | C16: Verzekering | D16: € 25.00 | E16: € 25.00 | F16: € 25.00 | G16: € 25.00 | H16: € 25.00 | I16: € 25.00 | P16: =SUM(Maandelijks[[#This Row],[Jan]:[Dec]]) -> € 150.00
B17: Uitgaven | C17: Elektriciteit | D17: € 100.00 | E17: € 100.00 | F17: € 100.00 | G17: € 100.00 | H17: € 100.00 | I17: € 100.00 | P17: =SUM(Maandelijks[[#This Row],[Jan]:[Dec]]) -> € 600.00
B18: Uitgaven | C18: Gas | D18: € 50.00 | E18: € 50.00 | F18: € 50.00 | G18: € 50.00 | H18: € 50.00 | I18: € 50.00 | P18: =SUM(Maandelijks[[#This Row],[Jan]:[Dec]]) -> € 300.00
B19: Uitgaven | C19: Water | D19: € 50.00 | E19: € 50.00 | F19: € 50.00 | G19: € 50.00 | H19: € 50.00 | I19: € 50.00 | P19: =SUM(Maandelijks[[#This Row],[Jan]:[Dec]]) -> € 300.00
B20: Uitgaven | C20: Riolering | D20: € 25.00 | E20: € 25.00 | F20: € 25.00 | G20: € 25.00 | H20: € 25.00 | I20: € 25.00 | P20: =SUM(Maandelijks[[#This Row],[Jan]:[Dec]]) -> € 150.00
B21: Uitgaven | C21: Afval | D21: € 12.50 | E21: € 12.50 | F21: € 12.50 | G21: € 12.50 | H21: € 12.50 | I21: € 12.50 | P21: =SUM(Maandelijks[[#This Row],[Jan]:[Dec]]) -> € 75.00
B22: Uitgaven | C22: Telefoon | D22: € 50.00 | E22: € 50.00 | F22: € 50.00 | G22: € 50.00 | H22: € 50.00 | I22: € 50.00 | P22: =SUM(Maandelijks[[#This Row],[Jan]:[Dec]]) -> € 300.00
B23: Uitgaven | C23: Internet | D23: € 50.00 | E23: € 50.00 | F23: € 50.00 | G23: € 50.00 | H23: € 50.00 | I23: € 50.00 | P23: =SUM(Maandelijks[[#This Row],[Jan]:[Dec]]) -> € 300.00
B24: Uitgaven | C24: Premies arbeidsongeschiktheidsverzekering | D24: € 125.00 | E24: € 125.00 | F24: € 125.00 | G24: € 125.00 | H24: € 125.00 | I24: € 125.00 | P24: =SUM(Maandelijks[[#This Row],[Jan]:[Dec]]) -> € 750.00
B25: Uitgaven | C25: Eten | D25: € 400.00 | E25: € 500.00 | F25: € 450.00 | G25: € 400.00 | H25: € 450.00 | I25: € 425.00 | P25: =SUM(Maandelijks[[#This Row],[Jan]:[Dec]]) -> € 2,625.00
B26: Uitgaven | C26: Kleding | D26: € 50.00 | E26: € 75.00 | F26: € 100.00 | G26: € 75.00 | H26: € 125.00 | I26: € 75.00 | P26: =SUM(Maandelijks[[#This Row],[Jan]:[Dec]]) -> € 500.00
B27: Uitgaven | C27: Dokter/tandarts/apotheek | D27: € 50.00 | E27: € 10.00 | F27: € 25.00 | G27: € 25.00 | H27: € 20.00 | I27: € 70.00 | P27: =SUM(Maandelijks[[#This Row],[Jan]:[Dec]]) -> € 200.00
B28: Uitgaven | C28: Bus | D28: € 30.00 | E28: € 30.00 | F28: € 30.00 | G28: € 20.00 | H28: € 30.00 | I28: € 30.00 | P28: =SUM(Maandelijks[[#This Row],[Jan]:[Dec]]) -> € 170.00
B29: Uitgaven | C29: Overige 2 | D29: € 0.00 | E29: € 0.00 | F29: € 0.00 | G29: € 0.00 | H29: € 0.00 | I29: € 0.00 | P29: =SUM(Maandelijks[[#This Row],[Jan]:[Dec]]) -> € 0.00
B30: Uitgaven | C30: Overige 3 | D30: € 0.00 | E30: € 0.00 | F30: € 0.00 | G30: € 0.00 | H30: € 0.00 | I30: € 0.00 | P30: =SUM(Maandelijks[[#This Row],[Jan]:[Dec]]) -> € 0.00
B31: Uitgaven | C31: Overige 4 | D31: € 0.00 | E31: € 0.00 | F31: € 0.00 | G31: € 0.00 | H31: € 0.00 | I31: € 0.00 | P31: =SUM(Maandelijks[[#This Row],[Jan]:[Dec]]) -> € 0.00
B32: Discretionair | C32: Uit eten | D32: € 50.00 | E32: € 150.00 | F32: € 100.00 | G32: € 50.00 | H32: € 150.00 | I32: € 100.00 | P32: =SUM(Maandelijks[[#This Row],[Jan]:[Dec]]) -> € 600.00
B33: Discretionair | C33: Cadeaus | D33: € 25.00 | E33: € 75.00 | F33: € 50.00 | G33: € 25.00 | H33: € 75.00 | I33: € 50.00 | P33: =SUM(Maandelijks[[#This Row],[Jan]:[Dec]]) -> € 300.00
B34: Discretionair | C34: Reiskosten | D34: € 0.00 | E34: € 0.00 | F34: € 1,000.00 | G34: € 0.00 | H34: € 0.00 | I34: € 1,000.00 | P34: =SUM(Maandelijks[[#This Row],[Jan]:[Dec]]) -> € 2,000.00
B35: Discretionair | C35: Amusement | D35: € 50.00 | E35: € 150.00 | F35: € 100.00 | G35: € 50.00 | H35: € 150.00 | I35: € 100.00 | P35: =SUM(Maandelijks[[#This Row],[Jan]:[Dec]]) -> € 600.00
B36: Discretionair | C36: Persoonlijke verzorging | D36: € 15.00 | E36: € 25.00 | F36: € 35.00 | G36: € 15.00 | H36: € 25.00 | I36: € 35.00 | P36: =SUM(Maandelijks[[#This Row],[Jan]:[Dec]]) -> € 150.00
B37: Discretionair | C37: Winkelen | D37: € 100.00 | E37: € 200.00 | F37: € 150.00 | G37: € 175.00 | H37: € 150.00 | I37: € 175.00 | P37: =SUM(Maandelijks[[#This Row],[Jan]:[Dec]]) -> € 950.00
B38: Discretionair | C38: Liefdadigheid | D38: € 50.00 | E38: € 50.00 | F38: € 50.00 | G38: € 50.00 | H38: € 50.00 | I38: € 50.00 | P38: =SUM(Maandelijks[[#This Row],[Jan]:[Dec]]) -> € 300.00
B39: Discretionair | C39: Clubs/lidmaatschappen | D39: € 25.00 | E39: € 25.00 | F39: € 25.00 | G39: € 25.00 | H39: € 25.00 | I39: € 25.00 | P39: =SUM(Maandelijks[[#This Row],[Jan]:[Dec]]) -> € 150.00
B40: Discretionair | C40: Woningverbetering | D40: € 400.00 | E40: € 400.00 | F40: € 400.00 | G40: € 400.00 | H40: € 400.00 | I40: € 400.00 | P40: =SUM(Maandelijks[[#This Row],[Jan]:[Dec]]) -> € 2,400.00
B41: Discretionair | C41: Overige 1 | D41: € 0.00 | E41: € 0.00 | F41: € 0.00 | G41: € 0.00 | H41: € 0.00 | I41: € 0.00 | P41: =SUM(Maandelijks[[#This Row],[Jan]:[Dec]]) -> € 0.00
B42: Discretionair | C42: Overige 2 | D42: € 0.00 | E42: € 0.00 | F42: € 0.00 | G42: € 0.00 | H42: € 0.00 | I42: € 0.00 | P42: =SUM(Maandelijks[[#This Row],[Jan]:[Dec]]) -> € 0.00
B43: Spaargeld | C43: Cashreserve | D43: € 416.67 | E43: € 416.67 | F43: € 416.67 | G43: € 416.67 | H43: € 416.67 | I43: € 416.67 | P43: =SUM(Maandelijks[[#This Row],[Jan]:[Dec]]) -> € 2,500.00
B44: Spaargeld | C44: Pensioenvoorziening/enz. | D44: € 1,000.00 | E44: € 1,000.00 | F44: € 1,000.00 | G44: € 1,000.00 | H44: € 1,000.00 | I44: € 1,000.00 | P44: =SUM(Maandelijks[[#This Row],[Jan]:[Dec]]) -> € 6,000.00
B45: Spaargeld | C45: Spaarrekening | D45: € 500.00 | E45: € 500.00 | F45: € 500.00 | G45: € 500.00 | H45: € 500.00 | I45: € 500.00 | P45: =SUM(Maandelijks[[#This Row],[Jan]:[Dec]]) -> € 3,000.00
B46: Spaargeld | C46: Overige 1 | D46: € 0.00 | E46: € 0.00 | F46: € 0.00 | G46: € 0.00 | H46: € 0.00 | I46: € 0.00 | P46: =SUM(Maandelijks[[#This Row],[Jan]:[Dec]]) -> € 0.00
B47: Spaargeld | C47: Overige 2 | D47: € 0.00 | E47: € 0.00 | F47: € 0.00 | G47: € 0.00 | H47: € 0.00 | I47: € 0.00 | P47: =SUM(Maandelijks[[#This Row],[Jan]:[Dec]]) -> € 0.00
B48: Totaal | D48: =SUMIF(Maandelijks[Type],"Inkomsten",Maandelijks[Jan])-SUMIF(Maandelijks[Type],"<>Inkomsten",Maandelijks[Jan]) -> € 3,692.50 | E48: =SUMIF(Maandelijks[Type],"Inkomsten",Maandelijks[Feb])-SUMIF(Maandelijks[Type],"<>Inkomsten",Maandelijks[Feb]) -> € 3,247.50 | F48: =SUMIF(Maandelijks[Type],"Inkomsten",Maandelijks[Mrt])-SUMIF(Maandelijks[Type],"<>Inkomsten",Maandelijks[Mrt]) -> € 2,522.50 | G48: =SUMIF(Maandelijks[Type],"Inkomsten",Maandelijks[Apr])-SUMIF(Maandelijks[Type],"<>Inkomsten",Maandelijks[Apr]) -> € 3,427.50 | H48: =SUMIF(Maandelijks[Type],"Inkomsten",Maandelijks[Mei])-SUMIF(Maandelijks[Type],"<>Inkomsten",Maandelijks[Mei]) -> € 2,887.50 | I48: =SUMIF(Maandelijks[Type],"Inkomsten",Maandelijks[Jun])-SUMIF(Maandelijks[Type],"<>Inkomsten",Maandelijks[Jun]) -> € 2,602.50 | J48: =SUMIF(Maandelijks[Type],"Inkomsten",Maandelijks[Jul])-SUMIF(Maandelijks[Type],"<>Inkomsten",Maandelijks[Jul]) -> € 0.00 | K48: =SUMIF(Maandelijks[Type],"Inkomsten",Maandelijks[Aug])-SUMIF(Maandelijks[Type],"<>Inkomsten",Maandelijks[Aug]) -> € 0.00 | L48: =SUMIF(Maandelijks[Type],"Inkomsten",Maandelijks[Sep])-SUMIF(Maandelijks[Type],"<>Inkomsten",Maandelijks[Sep]) -> € 0.00 | M48: =SUMIF(Maandelijks[Type],"Inkomsten",Maandelijks[Okt])-SUMIF(Maandelijks[Type],"<>Inkomsten",Maandelijks[Okt]) -> € 0.00 | N48: =SUMIF(Maandelijks[Type],"Inkomsten",Maandelijks[Nov])-SUMIF(Maandelijks[Type],"<>Inkomsten",Maandelijks[Nov]) -> € 0.00 | O48: =SUMIF(Maandelijks[Type],"Inkomsten",Maandelijks[Dec])-SUMIF(Maandelijks[Type],"<>Inkomsten",Maandelijks[Dec]) -> € 0.00 | P48: =SUMIF(Maandelijks[Type],"Inkomsten",Maandelijks[Totaal])-SUMIF(Maandelijks[Type],"<>Inkomsten",Maandelijks[Totaal]) -> € 18,380.00

Sheet Jaarlijkse cashflow
B1: PERSOONLIJKE CASHFLOW
C2: Totale cashflow tot heden: | D2: =AnnualCashFlowToDate -> € 42,250.00 | G2: Dit is een jaarlijkse schatting. Gebruik dit werkblad als u jaarbedragen wilt bekijken met geschatte waarden per maand. Gebruik de werkbladen Inkomsten, Uitgaven, Discretionair en Besparingen om items in te voeren.
B4: INKOMSTENOVERZICHT | F4: OVERZICHT VAN UITGAVEN | J4: OVERZICHT DISCRETIONAIR | N4: OVERZICHT SPAARGELD
B5: Totaal per jaar: | C5: =Inkomsten!C11 -> € 125,000.00 | F5: Totaal per jaar: | G5: =Uitgaven[[#Totals],[Jaarlijks ]] -> € 46,500.00 | J5: Totaal per jaar: | K5: =Discretionair[[#Totals],[Jaarlijks ]] -> € 13,250.00 | N5: Totaal per jaar: | O5: =Spaargeld[[#Totals],[Jaarlijks ]] -> € 23,000.00
B8: Totaal per maand: | C8: =Inkomsten!D11 -> € 10,416.67 | F8: Totaal per maand: | G8: =Uitgaven[[#Totals],[Maandelijks ]] -> € 3,875.00 | J8: Totaal per maand: | K8: =Discretionair[[#Totals],[Maandelijks ]] -> € 1,104.17 | N8: Totaal per maand: | O8: =Spaargeld!D10 -> € 1,916.67
R10: Rijlabels | S10: Jaarlijkse inkomsten | U10: Rijlabels | V10: Jaarlijkse inkomsten | X10: Rijlabels | Y10: Jaarlijkse inkomsten | AA10: Rijlabels | AB10: Jaarlijkse inkomsten
R11: Overige 2 | S11: € 0 | U11: Overige 1 | V11: € 0 | X11: Overige 1 | Y11: € 0 | AA11: Overige 2 | AB11: € 0
R12: Overige 3 | S12: € 0 | U12: Overige 2 | V12: € 0 | X12: Overige 2 | Y12: € 0 | AA12: Overige 1 | AB12: € 0
R13: Overige 4 | S13: € 0 | U13: Afval | V13: € 150 | X13: Clubs/lidmaatschappen | Y13: € 300 | AA13: Cashreserve | AB13: € 5,000
R14: Commissie/bonus | S14: € 5,000 | U14: Voertuigbelasting/-kosten | V14: € 200 | X14: Persoonlijke verzorging | Y14: € 300 | AA14: Sparen/investering | AB14: € 6,000
R15: Overige 1 | S15: € 30,000 | U15: Verzekering | V15: € 250 | X15: Liefdadigheid | Y15: € 600 | AA15: Pensioenvoorziening/enz. | AB15: € 12,000
R16: Salaris | S16: € 90,000 | U16: Internet | V16: € 600 | X16: Cadeaus | Y16: € 600 | AA16: Eindtotaal | AB16: € 23,000
R17: Eindtotaal | S17: € 125,000 | U17: Dokter/tandarts/apotheek | V17: € 600 | X17: Amusement | Y17: € 1,200
U18: Telefoon | V18: € 600 | X18: Maaltijden | Y18: € 1,200
U19: Water/riolering | V19: € 600 | X19: Winkelen | Y19: € 2,000
U20: Gas | V20: € 600 | X20: Reiskosten | Y20: € 2,250
U21: Elektriciteit | V21: € 1,200 | X21: Woningverbetering | Y21: € 4,800
U22: Kleding | V22: € 1,200 | X22: Eindtotaal | Y22: € 13,250
U23: Premies arbeidsongeschiktheidsverzekering | V23: € 1,500
U24: Ziektekostenverzekering | V24: € 2,500
U25: Afbetaling auto | V25: € 4,000
U26: Eten | V26: € 5,000
U27: Inkomstenbelasting | V27: € 12,500
U28: Hypotheek/huur | V28: € 15,000
U29: Eindtotaal | V29: € 46,500

Sheet Inkomsten
B1: PERSOONLIJKE CASHFLOW
C2: Totale cashflow tot heden: | D2: =AnnualCashFlowToDate -> € 42,250.00 | F2: Dit is een jaarlijkse schatting. Gebruik dit werkblad als u jaarbedragen wilt bekijken met geschatte waarden per maand. Als u dagelijkse items aan de tabellen wilt toevoegen, schat u de jaarlijkse bedragen/waarden en plaatst u de waarden in de kolom Jaarlijks.
B4: Inkomsten | C4: Jaarlijks | D4: Maandelijks
B5: Salaris | C5: € 90,000.00 | D5: =Inkomsten[[#This Row],[Jaarlijks ]]/12 -> € 7,500.00
B6: Commissie/bonus | C6: € 5,000.00 | D6: =Inkomsten[[#This Row],[Jaarlijks ]]/12 -> € 416.67
B7: Overige 1 | C7: € 30,000.00 | D7: =Inkomsten[[#This Row],[Jaarlijks ]]/12 -> € 2,500.00
B8: Overige 2 | C8: € 0.00 | D8: =Inkomsten[[#This Row],[Jaarlijks ]]/12 -> € 0.00
B9: Overige 3 | C9: € 0.00 | D9: =Inkomsten[[#This Row],[Jaarlijks ]]/12 -> € 0.00
B10: Overige 4 | C10: € 0.00 | D10: =Inkomsten[[#This Row],[Jaarlijks ]]/12 -> € 0.00
B11: Totaal | C11: =SUBTOTAL(109,Inkomsten[[Jaarlijks ]]) -> € 125,000.00 | D11: =SUBTOTAL(109,Inkomsten[[Maandelijks ]]) -> € 10,416.67

Sheet Uitgaven
B1: PERSOONLIJKE CASHFLOW
C2: Totale cashflow tot heden: | D2: =AnnualCashFlowToDate -> € 42,250.00 | F2: Dit is een jaarlijkse schatting. Gebruik dit werkblad als u jaarbedragen wilt bekijken met geschatte waarden per maand. Als u dagelijkse items aan de tabellen wilt toevoegen, schat u de jaarlijkse bedragen/waarden en plaatst u de waarden in de kolom Jaarlijks.
B4: Uitgaven | C4: Jaarlijks | D4: Maandelijks
B5: Inkomstenbelasting | C5: € 12,500.00 | D5: =Uitgaven[[#This Row],[Jaarlijks ]]/12 -> € 1,041.67
B6: Ziektekostenverzekering | C6: € 2,500.00 | D6: =Uitgaven[[#This Row],[Jaarlijks ]]/12 -> € 208.33
B7: Voertuigbelasting/-kosten | C7: € 200.00 | D7: =Uitgaven[[#This Row],[Jaarlijks ]]/12 -> € 16.67
B8: Afbetaling auto | C8: € 4,000.00 | D8: =Uitgaven[[#This Row],[Jaarlijks ]]/12 -> € 333.33
B9: Hypotheek/huur | C9: € 15,000.00 | D9: =Uitgaven[[#This Row],[Jaarlijks ]]/12 -> € 1,250.00
B10: Verzekering | C10: € 250.00 | D10: =Uitgaven[[#This Row],[Jaarlijks ]]/12 -> € 20.83
B11: Elektriciteit | C11: € 1,200.00 | D11: =Uitgaven[[#This Row],[Jaarlijks ]]/12 -> € 100.00
B12: Gas | C12: € 600.00 | D12: =Uitgaven[[#This Row],[Jaarlijks ]]/12 -> € 50.00
B13: Water/riolering | C13: € 600.00 | D13: =Uitgaven[[#This Row],[Jaarlijks ]]/12 -> € 50.00
B14: Afval | C14: € 150.00 | D14: =Uitgaven[[#This Row],[Jaarlijks ]]/12 -> € 12.50
B15: Telefoon | C15: € 600.00 | D15: =Uitgaven[[#This Row],[Jaarlijks ]]/12 -> € 50.00
B16: Internet | C16: € 600.00 | D16: =Uitgaven[[#This Row],[Jaarlijks ]]/12 -> € 50.00
B17: Premies arbeidsongeschiktheidsverzekering | C17: € 1,500.00 | D17: =Uitgaven[[#This Row],[Jaarlijks ]]/12 -> € 125.00
B18: Eten | C18: € 5,000.00 | D18: =Uitgaven[[#This Row],[Jaarlijks ]]/12 -> € 416.67
B19: Kleding | C19: € 1,200.00 | D19: =Uitgaven[[#This Row],[Jaarlijks ]]/12 -> € 100.00
B20: Dokter/tandarts/apotheek | C20: € 600.00 | D20: =Uitgaven[[#This Row],[Jaarlijks ]]/12 -> € 50.00
B21: Overige 1 | C21: € 0.00 | D21: =Uitgaven[[#This Row],[Jaarlijks ]]/12 -> € 0.00
B22: Overige 2 | C22: € 0.00 | D22: =Uitgaven[[#This Row],[Jaarlijks ]]/12 -> € 0.00
B23: Totaal | C23: =SUBTOTAL(109,Uitgaven[[Jaarlijks ]]) -> € 46,500.00 | D23: =SUBTOTAL(109,Uitgaven[[Maandelijks ]]) -> € 3,875.00

Sheet Discretionair
B1: PERSOONLIJKE CASHFLOW
C2: Totale cashflow tot heden: | D2: =AnnualCashFlowToDate -> € 42,250.00 | F2: Dit is een jaarlijkse schatting. Gebruik dit werkblad als u jaarbedragen wilt bekijken met geschatte waarden per maand. Als u dagelijkse items aan de tabellen wilt toevoegen, schat u de jaarlijkse bedragen/waarden en plaatst u de waarden in de kolom Jaarlijks.
B4: Discretionair | C4: Jaarlijks | D4: Maandelijks
B5: Maaltijden | C5: € 1,200.00 | D5: =Discretionair[[#This Row],[Jaarlijks ]]/12 -> € 100.00
B6: Cadeaus | C6: € 600.00 | D6: =Discretionair[[#This Row],[Jaarlijks ]]/12 -> € 50.00
B7: Reiskosten | C7: € 2,250.00 | D7: =Discretionair[[#This Row],[Jaarlijks ]]/12 -> € 187.50
B8: Amusement | C8: € 1,200.00 | D8: =Discretionair[[#This Row],[Jaarlijks ]]/12 -> € 100.00
B9: Persoonlijke verzorging | C9: € 300.00 | D9: =Discretionair[[#This Row],[Jaarlijks ]]/12 -> € 25.00
B10: Winkelen | C10: € 2,000.00 | D10: =Discretionair[[#This Row],[Jaarlijks ]]/12 -> € 166.67
B11: Liefdadigheid | C11: € 600.00 | D11: =Discretionair[[#This Row],[Jaarlijks ]]/12 -> € 50.00
B12: Clubs/lidmaatschappen | C12: € 300.00 | D12: =Discretionair[[#This Row],[Jaarlijks ]]/12 -> € 25.00
B13: Woningverbetering | C13: € 4,800.00 | D13: =Discretionair[[#This Row],[Jaarlijks ]]/12 -> € 400.00
B14: Overige 1 | C14: € 0.00 | D14: =Discretionair[[#This Row],[Jaarlijks ]]/12 -> € 0.00
B15: Overige 2 | C15: € 0.00 | D15: =Discretionair[[#This Row],[Jaarlijks ]]/12 -> € 0.00
B16: Totaal | C16: =SUBTOTAL(109,Discretionair[[Jaarlijks ]]) -> € 13,250.00 | D16: =SUBTOTAL(109,Discretionair[[Maandelijks ]]) -> € 1,104.17

Sheet Spaargeld
B1: PERSOONLIJKE CASHFLOW
C2: Totale cashflow tot heden: | D2: =AnnualCashFlowToDate -> € 42,250.00 | F2: Dit is een jaarlijkse schatting. Gebruik dit werkblad als u jaarbedragen wilt bekijken met geschatte waarden per maand. Als u dagelijkse items aan de tabellen wilt toevoegen, schat u de jaarlijkse bedragen/waarden en plaatst u de waarden in de kolom Jaarlijks.
B4: Spaargeld | C4: Jaarlijks | D4: Maandelijks
B5: Cashreserve | C5: € 5,000.00 | D5: =Spaargeld[[#This Row],[Jaarlijks ]]/12 -> € 416.67
B6: Pensioenvoorziening/enz. | C6: € 12,000.00 | D6: =Spaargeld[[#This Row],[Jaarlijks ]]/12 -> € 1,000.00
B7: Sparen/investering | C7: € 6,000.00 | D7: =Spaargeld[[#This Row],[Jaarlijks ]]/12 -> € 500.00
B8: Overige 1 | C8: € 0.00 | D8: =Spaargeld[[#This Row],[Jaarlijks ]]/12 -> € 0.00
B9: Overige 2 | C9: € 0.00 | D9: =Spaargeld[[#This Row],[Jaarlijks ]]/12 -> € 0.00
B10: Totaal | C10: =SUBTOTAL(109,Spaargeld[[Jaarlijks ]]) -> € 23,000.00 | D10: =SUBTOTAL(109,Spaargeld[[Maandelijks ]]) -> € 1,916.67
